[Event "CZE-ch U16 Open 2023"]
[Site "Teplice"]
[Date "2023.03.15"]
[Round "6.8"]
[White "Simunek, Jakub Simon"]
[Black "Tesar, Jakub"]
[Result "1-0"]
[ECO "C07"]
[WhiteElo "1970"]
[BlackElo "1960"]
[Annotator "TA"]
[PlyCount "139"]
[EventDate "2023.03.09"]
[EventType "swiss"]
[EventCountry "CZE"]
[SourceTitle "playchess.com"]
[Source "ChessBase"]
[SourceQuality "1"]
[TimeControl "40/5400+30:1800+30"]

{[%evp 13,139,0,-7,-14,-14,-33,-20,-37,-41,-26,-26,-30,7,0,24,31,16,0,22,-6,0,0,0,0,0,0,0,0,-12,-10,8,0,0,0,0,0,119,51,532,526,511,505,480,353,341,326,331,212,205,208,170,221,199,191,187,98,98,90,141,100,113,106,258,258,258,258,276,276,276,276,276,276,276,276,290,276,523,523,518,448,522,444,483,294,311,311,311,250,250,250,250,227,11515,7794,1839,1462,6056,4943,1832,266,745,767,758,266,511,441,266,266,266,266,204,204,29975,29976,29976,29976,29977,29978,29978,29979,29979,29980,29978,29978,29971,29968,29980,29980]} 1. e4 {[%emt 0:00:17]} e6 {[%emt 0:00:05]} 2. d4 {[%emt 0:00:13]} d5 {[%emt 0:00:06]} 3. Nd2 {[%emt 0:00:22]} c5 {[%emt 0:00:09]} 4. Ngf3 {[%emt 0:00:48]} cxd4 {[%emt 0:00:30]} 5. Nxd4 {[%emt 0:02:13]} Nf6 {[%emt 0:03:50]} 6. e5 {[%emt 0:06:08]} Nfd7 {[%emt 0:00:30]} 7. N2f3 {[%emt 0:00:50]} Nc6 {[%emt 0:08:48]} 8. Nxc6 {[%emt 0:00:30] The old main line. C07: French Tarrasch: 3...c5, 4 Ngf3 and 4 exd5 Qxd5.} bxc6 {[%emt 0:00:05]} 9. c3 {[%emt 0:00:18]} (9. Bd3 $5) 9... Qb6 {[%emt 0:07:45]} 10. Bd3 {[%emt 0:06:38] [#] The position is equal.} a5 $146 {[%emt 0:19:49]} ({Predecessor:} 10... Ba6 11. O-O Bxd3 12. Qxd3 Be7 13. Qc2 O-O 14. c4 f6 15. Be3 Qb7 16. exf6 Bxf6 {0-1 Avellan,G (2109)-Fernandez Medina,E CADAP Cand and Maestro 20-1 email 2007}) 11. O-O {[%emt 0:00:58]} Ba6 {[%emt 0:02:24] Inhibits c4.} 12. b3 {[%emt 0:20:39]} Rb8 {[%emt 0:17:24]} 13. c4 {[%emt 0:12:45]} dxc4 {[%emt 0:10:13]} 14. bxc4 {[%emt 0:00:36]} Qc7 {[%emt 0:01:18]} 15. Be3 {[%emt 0:19:46]} Bc5 {[%emt 0:06:37]} 16. Re1 {[%emt 0:03:05]} Bb4 {[%emt 0:01:34]} 17. Bd2 {[%emt 0:12:13]} h6 {[%emt 0:00:24]} 18. a3 {[%emt 0:00:45]} Bxd2 {[%emt 0:00:19]} 19. Qxd2 {[%emt 0:00:05]} O-O {[%emt 0:00:32]} 20. Qe3 {[%emt 0:01:23]} Rfd8 {[%emt 0:05:20]} 21. Rad1 {[%emt 0:02:29]} Rb2 {[%emt 0:03:50]} 22. Qe4 {[%emt 0:04:32] Qh7+ is the strong threat.} Nf8 {[%emt 0:00:34] Inhibits Qh7+.} 23. Rb1 $36 {[%emt 0:01:28][%mdl 2048] White has the initiative.} Ra2 {[%emt 0:01:50]} 24. Qe3 {[%emt 0:01:55]} Kh8 {[%emt 0:00:59] [#]} (24... a4 $11) 25. Bf1 {[%emt 0:01:22]} (25. Be4 $1 $16) 25... c5 $2 {[%emt 0:01:50][%mdl 8192]} ({Better is} 25... a4 $1 $14) 26. Qb3 $18 {[%emt 0:00:20]} Rdd2 {[%emt 0:00:25]} 27. Nxd2 {[%emt 0:00:04]} Rxd2 {[%emt 0:00:07]} 28. Qe3 {[%emt 0:00:21]} Rd4 {[%emt 0:00:44]} 29. Rec1 {[%emt 0:00:38]} Ng6 {[%emt 0:00:22][%cal Bf8g6,Bg6e5,Be5c4][%mdl 32]} 30. Qb3 {[%emt 0:01:03] Qb8+ would be deadly.} Nxe5 {[%emt 0:01:33] [#]} 31. Qb8+ $1 {[%emt 0:00:13]} Qxb8 {[%emt 0:00:07]} 32. Rxb8+ {[%emt 0:00:03]} Kh7 {[%emt 0:00:06]} 33. Ra8 {[%emt 0:00:22]} Bxc4 {[%emt 0:02:50]} 34. Bxc4 {[%emt 0:01:15]} (34. Rxa5 $18 Bxf1 35. Kxf1) 34... Nxc4 {[%emt 0:02:03][%mdl 4096] Endgame KRR-KRN} 35. Rc8 {[%emt 0:00:22]} Rd5 {[%emt 0:01:28]} 36. Kf1 {[%emt 0:00:37]} (36. Rxc4 $2 Rd1#) 36... Nxa3 {[%emt 0:00:58]} 37. R8xc5 {[%emt 0:00:15]} Nb5 $2 {[%emt 0:00:32]} (37... Rd4 $16) 38. Rxd5 {[%emt 0:00:54][%mdl 64] Remove Defender} exd5 {[%emt 0:00:05] KR-KN} 39. Rc5 {[%emt 0:00:05][%csl LRb5,LRd5]} Nd6 {[%emt 0:01:09]} 40. Rxa5 {[%emt 0:00:17]} d4 {[%emt 0:00:29]} 41. Rd5 {[%emt 0:30:06]} Ne4 {[%emt 0:30:16]} 42. Rxd4 {[%emt 0:00:08]} Nf6 {[%emt 0:00:42]} 43. Ke2 {[%emt 0:00:00]} Kg6 {[%emt 0:00:00]} 44. h3 {[%emt 0:00:00]} h5 $2 {[%emt 0:00:00]} (44... Kf5 45. f4 g6) 45. Ra4 {[%emt 0:00:00]} Nd5 {[%emt 0:00:00]} 46. Kf3 {[%emt 0:00:00]} Nc7 {[%emt 0:00:00]} 47. Ra5 {[%emt 0:00:00]} Ne6 {[%emt 0:00:00]} 48. Ra6 {[%emt 0:00:00]} Kf5 {[%emt 0:00:00]} 49. g4+ {[%emt 0:00:00]} hxg4+ {[%emt 0:00:00]} 50. hxg4+ {[%emt 0:00:00]} Kf6 {[%emt 0:00:00]} 51. Kg3 {[%emt 0:00:00] Strongly threatening f4.} Ke5 {[%emt 0:00:00]} 52. Ra5+ {[%emt 0:00:00]} Ke4 $2 {[%emt 0:00:00]} (52... Kf6 53. Kf3 Ng5+ 54. Ke3 Ne6 55. Rf5+ Ke7) 53. f3+ {[%emt 0:00:00]} Kd4 {[%emt 0:00:00]} 54. Ra7 {[%emt 0:00:00]} f6 {[%emt 0:00:00]} 55. f4 {[%emt 0:00:00] Re7 would kill now.} g5 {[%emt 0:01:22]} 56. f5 $2 {[%emt 0:00:37]} (56. fxg5 {White wants to mate with g6.} fxg5 57. Kf3) 56... Nc5 $2 {[%emt 0:01:37]} (56... Nf4 57. Ra1 Nd5) 57. Kf3 {[%emt 0:02:29]} Nb3 {[%emt 0:02:29]} 58. Rd7+ $2 {[%emt 0:00:30]} (58. Ra4+ Kd5 59. Ke3) 58... Ke5 {[%emt 0:00:24]} 59. Re7+ {[%emt 0:00:54]} Kd5 {[%emt 0:00:31]} 60. Ke3 {[%emt 0:00:20] Threatening mate with Rd7+.} Nc5 {[%emt 0:00:19] Inhibits Rd7+.} 61. Ra7 {[%emt 0:00:46]} Ke5 {[%emt 0:01:46]} 62. Rf7 {[%emt 0:00:29]} Na6 $2 {[%emt 0:01:44]} (62... Nd7 $18 63. Kf3 Nc5) 63. Re7+ {[%emt 0:00:09] White mates.} Kd5 {[%emt 0:00:04]} 64. Re6 {[%emt 0:00:10]} Nb4 {[%emt 0:00:46]} 65. Rxf6 {[%emt 0:00:30]} Nc2+ {[%emt 0:00:16]} 66. Kd3 {[%emt 0:01:37]} Ne1+ {[%emt 0:00:42]} 67. Ke2 {[%emt 0:00:11]} Ng2 {[%emt 0:00:17]} 68. Kf2 {[%emt 0:00:17]} Nf4 {[%emt 0:00:14]} 69. Kf3 {[%emt 0:00:09]} Ke5 {[%emt 0:00:23]} 70. Ra6 {[%emt 0:00:20] Weighted Error Value: White=0.43/Black=0.35} 1-0

[Event "CZE-ch U16 Open 2023"]
[Site "Teplice"]
[Date "2023.03.15"]
[Round "6.9"]
[White "Svoboda, Daniel"]
[Black "Tillmann, Stanislav"]
[Result "0-1"]
[ECO "B22"]
[WhiteElo "1748"]
[BlackElo "1907"]
[Annotator "TA"]
[PlyCount "120"]
[EventDate "2023.03.09"]
[EventType "swiss"]
[EventCountry "CZE"]
[SourceTitle "playchess.com"]
[Source "ChessBase"]
[SourceQuality "1"]
[TimeControl "40/5400+30:1800+30"]

{[%evp 14,120,0,4,4,-47,-43,-54,-45,-35,-43,-87,26,27,27,24,30,27,110,115,121,120,285,279,268,260,270,189,202,186,189,197,222,225,212,222,232,206,228,137,141,136,136,141,146,122,192,178,198,97,96,96,87,99,104,37,57,5,5,-31,-31,-58,-65,-77,-82,-148,-133,-162,-145,-213,-206,-222,-222,-218,-221,-197,-203,-207,-174,-331,-324,-356,-120,-89,-126,-112,-10,-10,-10,-10,-8,-8,-8,-8,-8,-8,-8,-8,0,-8,0,-8,0,-8,-8,-5057,-1872,-29985,-29986]} 1. e4 {[%emt 0:00:10][%cal Be2e4,Be4e5][%mdl 32]} c5 {[%emt 0:00:05]} 2. c3 {[%emt 0:00:25]} Nf6 {[%emt 0:00:21]} 3. e5 {[%emt 0:00:14]} Nd5 {[%emt 0:00:07]} 4. d4 {[%emt 0:00:06]} cxd4 {[%emt 0:00:17]} 5. cxd4 {[%emt 0:00:11]} d6 {[%emt 0:00:13]} 6. Nf3 {[%emt 0:00:48]} dxe5 {[%emt 0:00:27]} 7. dxe5 {[%emt 0:05:07]} Nc6 {[%emt 0:00:54]} 8. Bc4 {[%emt 0:02:06]} Be6 {[%emt 0:00:38][%cal Od5e3] B22: Sicilian: 2 c3.} (8... Ndb4 {simplifies} 9. Qxd8+ Nxd8 10. Na3 Bg4) 9. Ng5 {[%emt 0:14:41] [#]} (9. O-O $11) 9... Ne3 $146 {[%emt 0:02:25][%csl Ge3][%cal Rd8d1][%mdl 64] Discovered Attack, Double Attack} ({Predecessor:} 9... Nxe5 10. Nxe6 fxe6 11. Qa4+ Nc6 12. Bb5 Qd6 13. O-O g6 14. Nc3 Nxc3 15. bxc3 Bg7 {½-½ Vlassov,N (2352)-Langner,L (2377) Titled Tuesday intern op 18th Aug blitz 2020 (5)}) 10. Qxd8+ {[%emt 0:13:11]} ({Don't play} 10. fxe3 Qxd1+ 11. Kxd1 Bxc4 $17) 10... Rxd8 {[%emt 0:00:06] Black is slightly better.} 11. Bxe3 {[%emt 0:06:53]} Bxc4 {[%emt 0:00:12]} 12. Nd2 {[%emt 0:05:14]} Bd3 {[%emt 0:33:43]} ({But not} 12... Nxe5 $6 13. Nxc4 Nxc4 14. Bxa7 $15) (12... Bd5 $17 13. O-O Nxe5 14. Bxa7 Nd3) 13. e6 $11 {[%emt 0:06:47]} fxe6 {[%emt 0:00:39]} 14. Nxe6 {[%emt 0:01:41] Excellent horsemanship.} Rd6 {[%emt 0:01:06]} 15. Nc5 {[%emt 0:02:33]} a6 {[%emt 0:23:10]} (15... e6 $11 {remains equal.}) 16. Nxb7 $16 {[%emt 0:04:38]} Rg6 {[%emt 0:02:55]} 17. Nc5 {[%emt 0:09:10]} Nb4 {[%emt 0:00:29]} (17... Bf5 $16 {is a better defense.}) 18. Nxd3 $18 {[%emt 0:05:15]} Nxd3+ {[%emt 0:00:06]} 19. Ke2 {[%emt 0:00:11]} Nb4 {[%emt 0:09:37]} 20. g3 {[%emt 0:03:37]} Re6 {[%emt 0:05:14]} 21. Rac1 {[%emt 0:02:12] Rc8+ is the strong threat.} g6 {[%emt 0:02:04]} 22. Nf3 {[%emt 0:06:23] Rc8+ would be deadly.} Bg7 {[%emt 0:02:57]} 23. Rc8+ {[%emt 0:03:28]} Kd7 {[%emt 0:00:09]} 24. Rc4 {[%emt 0:01:06]} Rb8 {[%emt 0:04:04]} 25. Rd1+ {[%emt 0:01:19]} Ke8 {[%emt 0:02:21]} 26. Ng5 {[%emt 0:02:04]} Rc6 {[%emt 0:01:46]} 27. Rxc6 {[%emt 0:03:03]} Nxc6 {[%emt 0:00:02]} 28. b3 {[%emt 0:00:23]} Nb4 {[%emt 0:01:47] Against Rd5} 29. Ne6 {[%emt 0:01:17]} ({Resist} 29. Nxh7 $6 Nxa2 30. Kf3 Rxb3 $11) 29... Bc3 {[%emt 0:00:44]} (29... Be5 $16) 30. Bf4 $1 {[%emt 0:00:35]} Rb6 {[%emt 0:00:46]} 31. Nc7+ {[%emt 0:00:36]} (31. Rd8+ $18 {and White stays clearly on top.} Kf7 32. Ng5+ Kg7 33. Be3) 31... Kf7 $16 {[%emt 0:00:27]} 32. a3 {[%emt 0:00:28]} Na2 {[%emt 0:05:34]} 33. b4 {[%emt 0:00:27]} Bb2 {[%emt 0:00:19] Strongly threatening ...Nc3+.} 34. Nd5 {[%emt 0:00:34]} (34. Rd3 $16) 34... Re6+ {[%emt 0:00:10]} 35. Kf3 {[%emt 0:00:26]} ({White should play} 35. Kf1 $1 $14) 35... Bxa3 $11 {[%emt 0:00:12]} 36. Ra1 {[%emt 0:00:22]} Nxb4 {[%emt 0:00:06]} 37. Nc7 {[%emt 0:00:46][%cal Oc7e6]} Nc2 $1 {[%emt 0:00:35]} 38. Ra2 {[%emt 0:00:16][%cal Oc7e6]} Rc6 {[%emt 0:00:32]} 39. Kg2 {[%emt 0:00:43]} ({Better is} 39. Nd5) 39... a5 $17 {[%emt 0:01:31][%cal Og6g5,Ba6a5,Ba5b4,Bb4b3][%mdl 32]} 40. Nd5 {[%emt 0:00:32]} Bb4 {[%emt 0:01:08]} 41. Nxb4 {[%emt 0:04:45]} (41. Kf3 $17) 41... axb4 {[%emt 0:00:02][%mdl 4096] Endgame KRB-KRN} 42. Kf3 {[%emt 0:04:33]} b3 {[%emt 0:01:18] ( -> ...Rc3+)} 43. Rb2 {[%emt 0:00:53]} Rb6 {[%emt 0:02:10] And now ...Na3 would win.} 44. Ke4 {[%emt 0:03:46] [#]} Ke6 {[%emt 0:07:18]} 45. h3 {[%emt 0:07:28]} h5 {[%emt 0:03:06]} 46. Kd3 $2 {[%emt 0:03:48]} (46. Bg5 {was called for.}) 46... Kd5 $19 {[%emt 0:08:26]} 47. Kc3 {[%emt 0:02:12]} Ke4 $2 {[%emt 0:01:29]} (47... e5 $19 48. Bg5 Nd4) 48. Rxb3 $17 {[%emt 0:00:14]} Rxb3+ {[%emt 0:00:07]} 49. Kxb3 {[%emt 0:00:02] [#] KB-KN} Nd4+ {[%emt 0:00:23]} (49... Kd3 $1 $17) 50. Kc4 $11 {[%emt 0:01:36]} Nf5 {[%emt 0:01:41]} (50... e5 $5 51. Bh6 $8 Ne2 $11) 51. Bc7 {[%emt 0:01:28]} Kf3 {[%emt 0:00:49]} 52. g4 {[%emt 0:02:59]} hxg4 {[%emt 0:09:07]} 53. hxg4 {[%emt 0:00:00]} Kxg4 {[%emt 0:00:31]} 54. Kd5 {[%emt 0:00:55]} Kf3 {[%emt 0:00:17]} 55. Bb6 {[%emt 0:00:24]} Ng7 {[%emt 0:00:45]} 56. Ke5 {[%emt 0:01:18]} g5 {[%emt 0:00:19]} 57. Ba7 {[%emt 0:01:55]} g4 {[%emt 0:00:09]} 58. Bb6 {[%emt 0:00:22]} Nh5 {[%emt 0:01:00]} 59. Ke6 $2 {[%emt 0:00:44][%mdl 8192]} (59. Kf5 $11) 59... Nf4+ $19 {[%emt 0:00:28]} 60. Kxe7 {[%emt 0:00:38]} Nd5+ {[%emt 0:00:06] A wild game.   Weighted Error Value: White=0.45/Black=0.24 (precise)} 0-1

[Event "CZE-ch U16 Open 2023"]
[Site "Teplice"]
[Date "2023.03.15"]
[Round "6.10"]
[White "Slaby, Matej"]
[Black "Zezula, Jakub"]
[Result "1/2-1/2"]
[ECO "D48"]
[WhiteElo "1932"]
[BlackElo "1963"]
[Annotator "TA"]
[PlyCount "111"]
[EventDate "2023.03.09"]
[EventType "swiss"]
[EventCountry "CZE"]
[SourceTitle "playchess.com"]
[Source "ChessBase"]
[SourceQuality "1"]
[TimeControl "40/5400+30:1800+30"]

{[%evp 17,111,0,29,-4,0,-30,-22,-25,-37,-33,-29,-35,-24,-45,-42,-42,-47,-48,-35,-50,-14,-18,-14,-32,-27,-64,-39,-48,-46,-79,-48,-64,-61,-64,-64,-92,-81,-127,0,-79,-50,-49,-32,-50,-47,-68,-51,-70,-70,-86,-86,-86,-77,-78,-61,-66,-68,-68,-68,-91,-91,-88,-78,-84,-47,-49,-29,-29,-8,-45,-29,-43,-14,-14,-8,-11,-8,-16,0,-86,-92,-108,-105,-170,-170,-170,-52,-52,-52,-59,-59,-59,8,0,0,0]} 1. d4 {[%emt 0:00:04]} d5 {[%emt 0:00:11]} 2. Nf3 {[%emt 0:00:17]} Nf6 {[%emt 0:00:10]} 3. c4 {[%emt 0:00:09]} c6 {[%emt 0:00:49]} 4. Nc3 {[%emt 0:00:21]} e6 {[%emt 0:00:10]} 5. e3 {[%emt 0:00:19]} Nbd7 {[%emt 0:00:33]} 6. Bd3 {[%emt 0:00:37]} dxc4 {[%emt 0:00:57]} 7. Bxc4 {[%emt 0:00:07]} b5 {[%emt 0:00:03]} 8. Bd3 {[%emt 0:01:29]} a6 {[%emt 0:00:19]} 9. O-O {[%emt 0:00:23]} Bb7 {[%emt 0:01:19]} 10. Qe2 {[%emt 0:01:43] D48: Semi-Slav: Meran System: 7...b5 8 Bd3 a6.} (10. e4 $5 {[%cal Re4e5]}) 10... Be7 {[%emt 0:04:04]} 11. b3 {[%emt 0:03:27]} c5 {[%emt 0:01:43]} 12. Bb2 {[%emt 0:02:58]} (12. Ne5 {looks sharper.} O-O 13. Bb2 cxd4 14. exd4 Nb6 15. a4) 12... O-O {[%emt 0:01:16]} 13. Rfd1 {[%emt 0:02:39]} cxd4 {[%emt 0:02:17]} 14. exd4 {[%emt 0:00:19]} Nb6 {[%emt 0:01:16]} 15. Rac1 {[%emt 0:12:50]} Nbd5 {[%emt 0:03:03] [#]} 16. Nxd5 $146 {[%emt 0:01:37]} ({Predecessor:} 16. Bb1 Nxc3 17. Bxc3 Rc8 18. Ne5 Ba3 19. Bb2 Rxc1 20. Rxc1 Bxb2 21. Qxb2 Qd6 22. Qc3 {½-½ Szotkowski,D (1791)-Sramek,V (1967) Orlova op 14th 2017 (9)}) 16... Qxd5 {[%emt 0:06:12]} 17. Qe5 {[%emt 0:02:14]} Rac8 {[%emt 0:04:13]} 18. Qxd5 {[%emt 0:05:01]} Bxd5 {[%emt 0:02:10]} 19. Ne5 {[%emt 0:00:17]} Rfd8 {[%emt 0:02:28]} 20. f4 {[%emt 0:11:35]} g6 {[%emt 0:19:43]} 21. Kf2 {[%emt 0:08:34]} h5 {[%emt 0:00:32]} 22. g3 {[%emt 0:05:15]} Bd6 {[%emt 0:05:48]} 23. h3 {[%emt 0:07:44]} Kf8 {[%emt 0:03:44]} 24. Rg1 {[%emt 0:02:44]} Ke7 {[%emt 0:01:01]} (24... Rxc1 {simplifies} 25. Rxc1 Kg7 26. Bc3 Rc8) 25. Ke3 {[%emt 0:00:14]} Bb7 {[%emt 0:07:31]} (25... Ba8 {with more complications.} 26. h4 Bd5 27. Rge1 Bb4) 26. a3 {[%emt 0:03:52]} Nd5+ {[%emt 0:03:10]} 27. Kf2 {[%emt 0:00:47]} (27. Kf3 $142) 27... Nf6 {[%emt 0:01:32]} ({Black should try} 27... h4 28. Be4 Rxc1 29. Bxc1 hxg3+ 30. Kxg3 Rc8) 28. Ke3 $1 $17 {[%emt 0:01:05]} Bb8 {[%emt 0:02:56]} (28... Rxc1 {simplifies} 29. Rxc1 Nd5+ 30. Kf3 Rg8) 29. Ke2 {[%emt 0:04:50]} Ba7 {[%emt 0:02:13]} 30. Rxc8 {[%emt 0:01:53]} Rxc8 {[%emt 0:00:12]} 31. Kd2 {[%emt 0:04:09]} Ne4+ {[%emt 0:06:52]} 32. Bxe4 {[%emt 0:01:05]} Bxe4 {[%emt 0:00:03]} 33. Ke3 {[%emt 0:00:21]} Bd5 {[%emt 0:01:10]} 34. Rc1 {[%emt 0:00:57] Against Rc2} Rxc1 {[%emt 0:00:48]} 35. Bxc1 {[%emt 0:00:02][%mdl 4096] Endgame KBB-KBN} f6 {[%emt 0:02:17]} ({But not} 35... Bxb3 36. Nc6+ Kd6 37. Nxa7 $16) 36. Nxg6+ {[%emt 0:00:16]} Kf7 {[%emt 0:00:06]} 37. Nh4 {[%emt 0:00:21]} Bxb3 {[%emt 0:03:28]} 38. Nf3 {[%emt 0:04:04]} Bd5 {[%emt 0:00:57]} 39. Bb2 {[%emt 0:00:16]} Bb6 {[%emt 0:02:15]} 40. g4 {[%emt 0:00:45]} hxg4 {[%emt 0:00:44]} 41. hxg4 {[%emt 0:30:09]} Ba5 {[%emt 0:31:49]} 42. f5 {[%emt 0:04:13]} b4 {[%emt 0:02:39]} 43. Nh4 {[%emt 0:04:23]} bxa3 {[%emt 0:03:18]} (43... b3 {seems wilder.} 44. Ng6 Bc7 45. Nf4 Bxf4+ 46. Kxf4 a5) 44. Bxa3 {[%emt 0:00:20]} Bc3 {[%emt 0:01:13]} 45. fxe6+ {[%emt 0:04:48]} Bxe6 {[%emt 0:02:43] This pair of bishops is nice.} 46. Nf5 {[%emt 0:00:06]} a5 {[%emt 0:00:00][%cal Ba6a5,Ba5a4,Ba4a3][%mdl 32]} 47. Ke4 {[%emt 0:00:00]} Bb4 {[%emt 0:00:00]} 48. Bb2 {[%emt 0:00:00]} (48. Bxb4 $11 axb4 49. Ne3 (49. d5 Bxf5+ 50. gxf5 b3 51. Kd3 Ke7 52. Kc3 Kd6 53. Kxb3 Kxd5 54. Kc2 Ke5 55. Kd2 Kxf5 56. Ke3 Kg4 57. Kf2 Kf4 58. Kg2 Ke3 59. Kg3 f5 60. Kg2 f4 61. Kf1 Kf3 62. Ke1 Kg2 63. Ke2 f3+ 64. Ke3 f2 65. Ke4 f1=Q 66. Ke5 Kf3 67. Ke6 Ke4 68. Kd6 Qb5 69. Ke6 Qc6+ 70. Kf7 Kf5 71. Kf8 Kf6 72. Kg8 Qg2+ 73. Kh8 Qg7#)) 48... a4 {[%emt 0:00:00]} 49. d5 {[%emt 0:00:00]} Bd7 {[%emt 0:00:00] [#] ...a3 is the strong threat.} 50. Ne3 {[%emt 0:00:00]} (50. Ba1 $17) 50... a3 $19 {[%emt 0:00:00]} 51. Ba1 {[%emt 0:00:00]} Bd2 {[%emt 0:00:00]} ({Black should play} 51... Bc5 $19 {White must now prevent ...Kg6.} 52. Kd3 Kg6) 52. Nc4 $15 {[%emt 0:00:00]} Bc1 {[%emt 0:00:00]} 53. Kd3 $1 {[%emt 0:00:00]} Bxg4 {[%emt 0:00:00]} 54. Kc2 {[%emt 0:00:00] [#] Dodges Bd1+} Bb2 {[%emt 0:00:00]} 55. Nxb2 {[%emt 0:00:00]} axb2 {[%emt 0:00:00]} 56. Bxb2 {[%emt 0:00:00] Weighted Error Value: White=0.14 (very precise) /Black=0.19 (very precise)} 1/2-1/2

[Event "CZE-ch U16 Open 2023"]
[Site "Teplice"]
[Date "2023.03.15"]
[Round "6.11"]
[White "Mrazek, Adam"]
[Black "Sigut, Ondrej"]
[Result "1/2-1/2"]
[ECO "A04"]
[WhiteElo "1745"]
[BlackElo "1804"]
[Annotator "NA RC COMBH"]
[PlyCount "129"]
[EventDate "2023.03.09"]
[EventType "swiss"]
[EventCountry "CZE"]
[SourceTitle "playchess.com"]
[Source "ChessBase"]
[SourceQuality "1"]
[TimeControl "40/5400+30:1800+30"]

1. Nf3 {[%emt 0:01:33]} g6 {[%emt 0:00:19]} 2. g3 {[%emt 0:00:18]} Bg7 {[%emt 0:00:14]} 3. Bg2 {[%emt 0:00:04]} Nf6 {[%emt 0:00:06]} 4. O-O {[%emt 0:00:04]} O-O {[%emt 0:00:06]} 5. c4 {[%emt 0:00:05]} c6 {[%emt 0:01:18]} 6. Nc3 {[%emt 0:02:07]} d5 {[%emt 0:03:04]} 7. d4 {[%emt 0:09:18]} dxc4 {[%emt 0:12:40]} 8. a4 {[%emt 0:02:00]} Nd5 {[%emt 0:09:09]} 9. Bd2 {[%emt 0:31:20]} Nd7 {[%emt 0:10:27]} 10. Na2 {[%emt 0:14:34]} N7f6 {[%emt 0:12:54]} 11. Ne5 {[%emt 0:11:52]} Nd7 {[%emt 0:10:54]} 12. Nf3 {[%emt 0:09:08]} e5 {[%emt 0:06:08]} 13. e4 {[%emt 0:05:51]} Nc7 {[%emt 0:04:53]} 14. Be3 {[%emt 0:03:10]} exd4 {[%emt 0:02:15]} 15. Bxd4 {[%emt 0:00:17]} Nf6 {[%emt 0:06:04]} 16. Qc2 {[%emt 0:01:03]} Be6 {[%emt 0:04:39]} 17. Bc5 {[%emt 0:00:59]} Re8 {[%emt 0:00:10]} 18. Rad1 {[%emt 0:00:19]} Qc8 {[%emt 0:00:28]} 19. Ng5 {[%emt 0:03:10]} Na6 {[%emt 0:04:08]} 20. Nxe6 {[%emt 0:01:29]} Qxe6 {[%emt 0:00:37]} 21. Ba3 {[%emt 0:01:32]} Rad8 {[%emt 0:01:06]} 22. Nc3 {[%emt 0:00:24]} Nc7 {[%emt 0:01:35]} 23. Rfe1 {[%emt 0:00:43]} b5 {[%emt 0:00:35]} 24. axb5 {[%emt 0:00:30]} cxb5 {[%emt 0:00:05]} 25. Bb4 {[%emt 0:00:38]} Qb6 {[%emt 0:00:45]} 26. e5 {[%emt 0:00:21]} Ng4 {[%emt 0:01:35]} 27. Rxd8 {[%emt 0:00:14]} Rxd8 {[%emt 0:00:06]} 28. Bd6 {[%emt 0:00:39]} Re8 {[%emt 0:02:26]} 29. Bxc7 {[%emt 0:00:36]} Qxc7 {[%emt 0:00:05]} 30. Nxb5 {[%emt 0:00:36]} Qc5 {[%emt 0:00:44]} 31. Nd6 {[%emt 0:00:31]} Rxe5 {[%emt 0:00:23]} 32. Rxe5 {[%emt 0:00:20]} Bxe5 {[%emt 0:01:51]} 33. Ne4 {[%emt 0:00:27]} Qd4 {[%emt 0:01:43]} 34. h3 {[%emt 0:00:44]} Nf6 {[%emt 0:00:24]} 35. Nxf6+ {[%emt 0:00:28]} Bxf6 {[%emt 0:00:04]} 36. Qe2 {[%emt 0:00:26]} Be5 {[%emt 0:00:53]} 37. Kh1 {[%emt 0:00:38]} Qxb2 {[%emt 0:00:24]} 38. Qxb2 {[%emt 0:00:30]} Bxb2 {[%emt 0:00:05]} 39. Bd5 {[%emt 0:00:28]} c3 {[%emt 0:00:06]} 40. Bb3 {[%emt 0:00:01]} Kf8 {[%emt 0:00:16]} 41. Kg2 {[%emt 0:03:23]} f5 {[%emt 0:03:55]} 42. Kf3 {[%emt 0:03:56]} Bc1 {[%emt 0:01:54]} 43. Ke2 {[%emt 0:07:01]} Ke7 {[%emt 0:02:26]} 44. Kd3 {[%emt 0:01:19]} Bd2 {[%emt 0:00:13]} 45. f3 {[%emt 0:03:58]} h5 {[%emt 0:02:19]} 46. Kd4 {[%emt 0:05:59]} g5 {[%emt 0:05:04]} (46... Kf6 $19 47. Kd3 a5) 47. Ke5 {[%emt 0:03:57]} g4 {[%emt 0:03:20]} ({Better is} 47... Be1 48. g4 fxg4 49. fxg4 h4) 48. hxg4 $2 {[%emt 0:04:32]} (48. fxg4 $17 hxg4 49. hxg4) 48... fxg4 {[%emt 0:09:49]} 49. fxg4 {[%emt 0:00:07]} hxg4 {[%emt 0:00:05]} 50. Ba4 $17 {[%emt 0:01:11]} Be1 {[%emt 0:01:03]} 51. Kf4 $2 {[%emt 0:00:28]} (51. Bd1 $17) 51... Kd6 {[%emt 0:00:16]} 52. Kxg4 {[%emt 0:00:26]} Kc5 {[%emt 0:01:21]} 53. Kf3 {[%emt 0:00:19]} Kb4 {[%emt 0:02:50]} 54. Bd1 {[%emt 0:00:14]} Kc4 {[%emt 0:02:46]} 55. Ke2 {[%emt 0:00:54]} Bxg3 {[%emt 0:00:18]} 56. Bc2 {[%emt 0:00:44]} a5 {[%emt 0:00:06]} 57. Kd1 {[%emt 0:00:28]} Bf4 {[%emt 0:00:06]} 58. Bf5 {[%emt 0:00:28] [#]} Kb3 $1 {[%emt 0:01:24]} 59. Bc2+ {[%emt 0:00:24] [#]} Kb4 $2 {[%emt 0:02:18]} 60. Bf5 {[%emt 0:00:15]} Kb3 {[%emt 0:00:42]} ({Black should try} 60... a4 $17 61. Be6 Be3) 61. Bc2+ {[%emt 0:00:05] [#]} Kb2 $1 {[%emt 0:00:40] mates} 62. Ba4 {[%emt 0:00:06]} Bg5 {[%emt 0:00:41]} (62... Ka3 63. Bd7 Kb3 64. Bf5 a4 65. Bc2+ Ka3 66. Ke2 Kb4 67. Bb1 a3 68. Kf3 Kb3 69. Kg4 c2 70. Bxc2+ Kxc2 71. Kxf4 a2 72. Ke5 a1=Q+ 73. Kf5 Kd3 74. Ke6 Qd4 75. Kf5 Qd6 76. Kg4 Ke4 77. Kg5 Qe7+ 78. Kg6 Kf4 79. Kh6 Kf5 80. Kh5 Qh7#) 63. Bc2 {[%emt 0:01:06]} Bd2 {[%emt 0:00:06]} 64. Ba4 {[%emt 0:00:24]} Ka3 {[%emt 0:00:05]} 65. Bd7 {[%emt 0:00:41]} 1/2-1/2